[Event "Titled Tuesday Blitz February 28 Early 2023"]
[White "Klepikov, Nikita"]
[Black "Moroni, Luca Jr"]
[WhiteFideId "24145220"]
[BlackFideId "865834"]
[WhiteElo "2025"]
[BlackElo "2569"]
[Result "0-1"]
[Round "06"]
[TimeControl "180+2"]
[Date "2023.02.28"]
[WhiteClock "0:01:13"]
[BlackClock "0:02:42"]

1. e4 {[%clk 0:02:48]}  g6 {[%clk 0:02:58]} 2. d4 {[%clk 0:02:48]}  Nf6 {[%clk 0:02:58]} 3. Nc3 {[%clk 0:02:48]}  d6 {[%clk 0:02:56]} 4. Be2 {[%clk 0:02:47]}  Bg7 {[%clk 0:02:56]} 5. h4 {[%clk 0:02:47]}  h5 {[%clk 0:02:52]} 6. Nf3 {[%clk 0:02:47]}  O-O {[%clk 0:02:52]} 7. Ng5 {[%clk 0:02:47]}  Nc6 {[%clk 0:02:51]} 8. f3 {[%clk 0:02:42]}  e5 {[%clk 0:02:49]} 9. d5 {[%clk 0:02:41]}  Nd4 {[%clk 0:02:49]} 10. Bc4 {[%clk 0:02:19]}  c6 {[%clk 0:02:50]} 11. Be3 {[%clk 0:02:18]}  b5 {[%clk 0:02:49]} 12. Bb3 {[%clk 0:02:09]}  c5 {[%clk 0:02:49]} 13. Bxd4 {[%clk 0:02:04]}  exd4 {[%clk 0:02:50]} 14. Nxb5 {[%clk 0:02:03]}  Qa5+ {[%clk 0:02:51]} 15. c3 {[%clk 0:01:43]}  Qxb5 {[%clk 0:02:48]} 16. cxd4 {[%clk 0:01:44]}  cxd4 {[%clk 0:02:46]} 17. Qxd4 {[%clk 0:01:44]}  Ba6 {[%clk 0:02:47]} 18. Qd2 {[%clk 0:01:30]}  Rac8 {[%clk 0:02:47]} 19. Kf2 {[%clk 0:01:28]}  Nd7 {[%clk 0:02:46]} 20. Rac1 {[%clk 0:01:19]}  Nc5 {[%clk 0:02:43]} 21. Bc4 {[%clk 0:01:17]}  Qb6 {[%clk 0:02:42]} 22. Bxa6 {[%clk 0:01:13]}  Nxe4+ {[%clk 0:02:42]} 0-1


[Site "https://www.chess.com"]

[Event "Titled Tuesday Blitz February 28 Early 2023"]
[White "Yurasova, Daria"]
[Black "Golubka, Petro"]
[WhiteFideId "34146919"]
[BlackFideId "14114224"]
[WhiteElo "2134"]
[BlackElo "2404"]
[Result "1/2-1/2"]
[Round "06"]
[TimeControl "180+2"]
[Date "2023.02.28"]
[WhiteClock "0:00:09"]
[BlackClock "0:02:17"]

1. d4 {[%clk 0:03:00]}  b5 {[%clk 0:02:59]} 2. Nf3 {[%clk 0:02:59]}  Bb7 {[%clk 0:02:59]} 3. g3 {[%clk 0:02:57]}  Bxf3 {[%clk 0:02:56]} 4. exf3 {[%clk 0:02:58]}  c6 {[%clk 0:02:56]} 5. f4 {[%clk 0:02:58]}  d5 {[%clk 0:02:56]} 6. Bg2 {[%clk 0:02:58]}  Nf6 {[%clk 0:02:56]} 7. O-O {[%clk 0:02:55]}  e6 {[%clk 0:02:56]} 8. a4 {[%clk 0:02:51]}  b4 {[%clk 0:02:54]} 9. c4 {[%clk 0:02:49]}  bxc3 {[%clk 0:02:52]} 10. bxc3 {[%clk 0:02:47]}  Nbd7 {[%clk 0:02:53]} 11. f5 {[%clk 0:02:45]}  exf5 {[%clk 0:02:53]} 12. Re1+ {[%clk 0:02:43]}  Be7 {[%clk 0:02:53]} 13. Ba3 {[%clk 0:02:43]}  c5 {[%clk 0:02:52]} 14. dxc5 {[%clk 0:02:43]}  O-O {[%clk 0:02:51]} 15. Rxe7 {[%clk 0:02:33]}  Qxe7 {[%clk 0:02:51]} 16. c6 {[%clk 0:02:27]}  Nc5 {[%clk 0:02:51]} 17. Nd2 {[%clk 0:02:16]}  Rac8 {[%clk 0:02:51]} 18. Nb3 {[%clk 0:02:14]}  Rxc6 {[%clk 0:02:51]} 19. Bxd5 {[%clk 0:01:38]}  Nxd5 {[%clk 0:02:45]} 20. Qxd5 {[%clk 0:01:38]}  Qe6 {[%clk 0:02:46]} 21. Qxe6 {[%clk 0:01:32]}  Nxe6 {[%clk 0:02:47]} 22. Bxf8 {[%clk 0:01:32]}  Rxc3 {[%clk 0:02:46]} 23. Bxg7 {[%clk 0:01:12]}  Kxg7 {[%clk 0:02:44]} 24. Nd2 {[%clk 0:01:10]}  a5 {[%clk 0:02:44]} 25. Rb1 {[%clk 0:00:59]}  Ra3 {[%clk 0:02:43]} 26. Rb5 {[%clk 0:00:59]}  Rxa4 {[%clk 0:02:42]} 27. Rxf5 {[%clk 0:00:59]}  Rd4 {[%clk 0:02:40]} 28. Nf3 {[%clk 0:00:51]}  Rd1+ {[%clk 0:02:39]} 29. Kg2 {[%clk 0:00:52]}  a4 {[%clk 0:02:40]} 30. Ra5 {[%clk 0:00:51]}  Ra1 {[%clk 0:02:39]} 31. Ne5 {[%clk 0:00:31]}  Kf6 {[%clk 0:02:38]} 32. Nc4 {[%clk 0:00:27]}  Nd4 {[%clk 0:02:34]} 33. Ra6+ {[%clk 0:00:27]}  Kg7 {[%clk 0:02:34]} 34. Ra7 {[%clk 0:00:25]}  Kg6 {[%clk 0:02:26]} 35. Ne5+ {[%clk 0:00:24]}  Kf5 {[%clk 0:02:25]} 36. Nxf7 {[%clk 0:00:25]}  a3 {[%clk 0:02:26]} 37. Nd6+ {[%clk 0:00:25]}  Ke6 {[%clk 0:02:25]} 38. Nc4 {[%clk 0:00:18]}  a2 {[%clk 0:02:25]} 39. Nd2 {[%clk 0:00:18]}  h5 {[%clk 0:02:22]} 40. h3 {[%clk 0:00:17]}  Kd5 {[%clk 0:02:20]} 41. Ra5+ {[%clk 0:00:17]}  Kc6 {[%clk 0:02:19]} 42. Ra4 {[%clk 0:00:16]}  Kd5 {[%clk 0:02:18]} 43. Ra5+ {[%clk 0:00:10]}  Kc6 {[%clk 0:02:17]} 44. Ra4 {[%clk 0:00:11]}  Kd5 {[%clk 0:02:17]} 45. Ra5+ {[%clk 0:00:09]} 1/2-1/2


[Site "https://www.chess.com"]

[Event "Titled Tuesday Blitz February 28 Early 2023"]
[White "Aradhya, Garg"]
[Black "Mazurkiewicz, Michal"]
[WhiteFideId "25006746"]
[BlackFideId "1124943"]
[WhiteElo "2278"]
[BlackElo "2054"]
[Result "1-0"]
[Round "06"]
[TimeControl "180+2"]
[Date "2023.02.28"]
[WhiteClock "0:02:11"]
[BlackClock "0:00:30"]

1. d4 {[%clk 0:03:00]}  Nf6 {[%clk 0:02:59]} 2. c4 {[%clk 0:03:01]}  e5 {[%clk 0:02:59]} 3. dxe5 {[%clk 0:03:01]}  Ng4 {[%clk 0:03:00]} 4. Bf4 {[%clk 0:03:01]}  g5 {[%clk 0:03:00]} 5. Bd2 {[%clk 0:03:01]}  Bg7 {[%clk 0:03:01]} 6. Nc3 {[%clk 0:03:00]}  Nxe5 {[%clk 0:03:00]} 7. h4 {[%clk 0:02:58]}  h6 {[%clk 0:02:58]} 8. Nf3 {[%clk 0:02:54]}  g4 {[%clk 0:02:53]} 9. Nxe5 {[%clk 0:02:52]}  Bxe5 {[%clk 0:02:53]} 10. g3 {[%clk 0:02:52]}  Nc6 {[%clk 0:02:53]} 11. Bg2 {[%clk 0:02:52]}  d6 {[%clk 0:02:53]} 12. O-O {[%clk 0:02:52]}  Be6 {[%clk 0:02:53]} 13. Qa4 {[%clk 0:02:50]}  Qd7 {[%clk 0:02:43]} 14. Rfd1 {[%clk 0:02:50]}  Nd4 {[%clk 0:02:41]} 15. Qxd7+ {[%clk 0:02:49]}  Kxd7 {[%clk 0:02:42]} 16. b3 {[%clk 0:02:48]}  c6 {[%clk 0:02:31]} 17. Rac1 {[%clk 0:02:48]}  f5 {[%clk 0:02:27]} 18. Be3 {[%clk 0:02:46]}  c5 {[%clk 0:02:08]} 19. Bxb7 {[%clk 0:02:42]}  Rab8 {[%clk 0:02:08]} 20. Bg2 {[%clk 0:02:43]}  a5 {[%clk 0:01:53]} 21. Bf4 {[%clk 0:02:41]}  Bxf4 {[%clk 0:01:26]} 22. gxf4 {[%clk 0:02:42]}  a4 {[%clk 0:01:16]} 23. Rxd4 {[%clk 0:02:16]}  cxd4 {[%clk 0:01:16]} 24. Nb5 {[%clk 0:02:16]}  axb3 {[%clk 0:01:16]} 25. axb3 {[%clk 0:02:17]}  d5 {[%clk 0:00:54]} 26. Nxd4 {[%clk 0:02:17]}  dxc4 {[%clk 0:00:53]} 27. bxc4 {[%clk 0:02:18]}  Rb4 {[%clk 0:00:30]} 28. Rd1 {[%clk 0:02:11]}  Rxc4 {[%clk 0:00:30]} 29. Nxe6+ {[%clk 0:02:11]} 1-0


[Site "https://www.chess.com"]

[Event "Titled Tuesday Blitz February 28 Early 2023"]
[White "Md, Imran"]
[Black "Kochetov, Andrey"]
[WhiteFideId "25748580"]
[BlackFideId "24130532"]
[WhiteElo "2217"]
[BlackElo "2441"]
[Result "1-0"]
[Round "06"]
[TimeControl "180+2"]
[Date "2023.02.28"]
[WhiteClock "0:00:41"]
[BlackClock "0:00:01"]

1. d4 {[%clk 0:03:00]}  Nf6 {[%clk 0:02:59]} 2. Nf3 {[%clk 0:03:01]}  e6 {[%clk 0:02:59]} 3. Bf4 {[%clk 0:03:01]}  c5 {[%clk 0:02:59]} 4. e3 {[%clk 0:03:01]}  d5 {[%clk 0:02:59]} 5. Nc3 {[%clk 0:03:01]}  Bd6 {[%clk 0:02:55]} 6. dxc5 {[%clk 0:03:00]}  Bxc5 {[%clk 0:02:53]} 7. Bd3 {[%clk 0:02:59]}  O-O {[%clk 0:02:50]} 8. O-O {[%clk 0:02:59]}  b6 {[%clk 0:02:47]} 9. e4 {[%clk 0:02:56]}  Bb7 {[%clk 0:02:18]} 10. e5 {[%clk 0:02:39]}  Ne4 {[%clk 0:01:58]} 11. Bxe4 {[%clk 0:02:22]}  dxe4 {[%clk 0:01:54]} 12. Ng5 {[%clk 0:02:19]}  Qd4 {[%clk 0:01:27]} 13. Qe2 {[%clk 0:01:36]}  Ba6 {[%clk 0:00:39]} 14. Qh5 {[%clk 0:01:27]}  h6 {[%clk 0:00:33]} 15. Rad1 {[%clk 0:01:10]}  Bxf1 {[%clk 0:00:19]} 16. Rxd4 {[%clk 0:01:07]}  Bxd4 {[%clk 0:00:20]} 17. Ngxe4 {[%clk 0:01:01]}  Bc4 {[%clk 0:00:10]} 18. Bxh6 {[%clk 0:00:54]}  gxh6 {[%clk 0:00:08]} 19. Qxh6 {[%clk 0:00:53]}  Bxe5 {[%clk 0:00:07]} 20. Qg5+ {[%clk 0:00:51]}  Kh7 {[%clk 0:00:04]} 21. Qh5+ {[%clk 0:00:50]}  Kg8 {[%clk 0:00:03]} 22. Qxe5 {[%clk 0:00:49]}  Nd7 {[%clk 0:00:02]} 23. Qg5+ {[%clk 0:00:41]}  Kh8 {[%clk 0:00:01]} 24. Qh6+ {[%clk 0:00:41]}  Kg8 {[%clk 0:00:01]} 25. Ng5 {[%clk 0:00:41]}  Bd3 {[%clk 0:00:01]} 26. cxd3 {[%clk 0:00:41]} 1-0


[Site "https://www.chess.com"]

[Event "Titled Tuesday Blitz February 28 Early 2023"]
[White "Tymrakiewicz, Rafal"]
[Black "Atakhan, Abtin"]
[WhiteFideId "1108832"]
[BlackFideId "22502203"]
[WhiteElo "2151"]
[BlackElo "2189"]
[Result "0-1"]
[Round "06"]
[TimeControl "180+2"]
[Date "2023.02.28"]
[WhiteClock "0:00:02"]
[BlackClock "0:00:02"]

1. d4 {[%clk 0:03:00]}  Nf6 {[%clk 0:03:00]} 2. Bg5 {[%clk 0:03:01]}  Ne4 {[%clk 0:02:59]} 3. Bf4 {[%clk 0:03:01]}  d5 {[%clk 0:02:59]} 4. e3 {[%clk 0:03:01]}  c5 {[%clk 0:02:57]} 5. Bd3 {[%clk 0:03:02]}  cxd4 {[%clk 0:02:55]} 6. exd4 {[%clk 0:03:01]}  Nc6 {[%clk 0:02:47]} 7. c3 {[%clk 0:03:01]}  e6 {[%clk 0:02:34]} 8. Nd2 {[%clk 0:03:01]}  Bd6 {[%clk 0:02:33]} 9. Bxd6 {[%clk 0:02:57]}  Nxd6 {[%clk 0:02:34]} 10. Ngf3 {[%clk 0:02:57]}  O-O {[%clk 0:02:31]} 11. O-O {[%clk 0:02:57]}  f5 {[%clk 0:02:24]} 12. c4 {[%clk 0:02:28]}  Kh8 {[%clk 0:02:16]} 13. cxd5 {[%clk 0:02:23]}  exd5 {[%clk 0:02:17]} 14. Nb3 {[%clk 0:02:11]}  Ne4 {[%clk 0:02:09]} 15. Ne5 {[%clk 0:02:08]}  Nxe5 {[%clk 0:02:02]} 16. dxe5 {[%clk 0:02:08]}  Qb6 {[%clk 0:01:54]} 17. Qe2 {[%clk 0:01:52]}  Bd7 {[%clk 0:01:43]} 18. Kh1 {[%clk 0:01:50]}  Ba4 {[%clk 0:01:39]} 19. f3 {[%clk 0:01:40]}  Ng5 {[%clk 0:01:37]} 20. Qf2 {[%clk 0:01:30]}  Qxf2 {[%clk 0:01:10]} 21. Rxf2 {[%clk 0:01:30]}  Bxb3 {[%clk 0:01:04]} 22. axb3 {[%clk 0:01:30]}  a6 {[%clk 0:00:56]} 23. Rc2 {[%clk 0:01:24]}  Ne6 {[%clk 0:00:56]} 24. Rac1 {[%clk 0:01:18]}  g6 {[%clk 0:00:45]} 25. b4 {[%clk 0:01:16]}  Kg7 {[%clk 0:00:39]} 26. Kg1 {[%clk 0:01:13]}  Rf7 {[%clk 0:00:38]} 27. Kf2 {[%clk 0:01:11]}  Re7 {[%clk 0:00:36]} 28. g3 {[%clk 0:01:11]}  f4 {[%clk 0:00:32]} 29. Rc3 {[%clk 0:00:59]}  Rae8 {[%clk 0:00:23]} 30. Bb1 {[%clk 0:00:51]}  h5 {[%clk 0:00:19]} 31. Ba2 {[%clk 0:00:49]}  Rd7 {[%clk 0:00:15]} 32. Rc8 {[%clk 0:00:39]}  Rxc8 {[%clk 0:00:12]} 33. Rxc8 {[%clk 0:00:40]}  g5 {[%clk 0:00:10]} 34. Rc2 {[%clk 0:00:19]}  Kg6 {[%clk 0:00:04]} 35. Rd2 {[%clk 0:00:19]}  Nc7 {[%clk 0:00:03]} 36. Bb1+ {[%clk 0:00:19]}  Kf7 {[%clk 0:00:02]} 37. Bf5 {[%clk 0:00:20]}  Re7 {[%clk 0:00:02]} 38. e6+ {[%clk 0:00:17]}  Kf6 {[%clk 0:00:02]} 39. g4 {[%clk 0:00:16]}  hxg4 {[%clk 0:00:01]} 40. fxg4 {[%clk 0:00:14]}  Rh7 {[%clk 0:00:02]} 41. Kg2 {[%clk 0:00:12]}  Re7 {[%clk 0:00:02]} 42. Rd4 {[%clk 0:00:05]}  Nxe6 {[%clk 0:00:02]} 43. Rxd5 {[%clk 0:00:04]}  Nc7 {[%clk 0:00:02]} 44. Rd6+ {[%clk 0:00:05]}  Kf7 {[%clk 0:00:02]} 45. Rh6 {[%clk 0:00:04]}  Nb5 {[%clk 0:00:02]} 46. Rh7+ {[%clk 0:00:04]}  Kf6 {[%clk 0:00:03]} 47. Rxe7 {[%clk 0:00:04]}  Kxe7 {[%clk 0:00:03]} 48. Bd3 {[%clk 0:00:02]}  Nd4 {[%clk 0:00:03]} 49. h4 {[%clk 0:00:01]}  gxh4 {[%clk 0:00:03]} 50. Kh3 {[%clk 0:00:02]}  Nf3 {[%clk 0:00:02]} 0-1


[Site "https://www.chess.com"]

[Event "Titled Tuesday Blitz February 28 Early 2023"]
[White "Chernov, Mikhail"]
[Black "Arabidze, Meri"]
[WhiteFideId "24143170"]
[BlackFideId "13604040"]
[WhiteElo "2113"]
[BlackElo "2405"]
[Result "0-1"]
[Round "06"]
[TimeControl "180+2"]
[Date "2023.02.28"]
[WhiteClock "0:00:05"]
[BlackClock "0:00:45"]

1. e4 {[%clk 0:03:00]}  c5 {[%clk 0:02:57]} 2. Nf3 {[%clk 0:03:00]}  e6 {[%clk 0:02:58]} 3. d4 {[%clk 0:03:00]}  cxd4 {[%clk 0:02:59]} 4. Nxd4 {[%clk 0:03:01]}  Nc6 {[%clk 0:02:59]} 5. Be2 {[%clk 0:03:01]}  a6 {[%clk 0:02:58]} 6. O-O {[%clk 0:03:01]}  Qc7 {[%clk 0:02:57]} 7. Be3 {[%clk 0:03:00]}  Nf6 {[%clk 0:02:57]} 8. Nc3 {[%clk 0:03:00]}  Be7 {[%clk 0:02:56]} 9. f4 {[%clk 0:02:59]}  d6 {[%clk 0:02:57]} 10. Qe1 {[%clk 0:03:00]}  O-O {[%clk 0:02:56]} 11. Qg3 {[%clk 0:03:00]}  Nxd4 {[%clk 0:02:57]} 12. Bxd4 {[%clk 0:03:01]}  b5 {[%clk 0:02:58]} 13. a3 {[%clk 0:02:54]}  Bb7 {[%clk 0:02:58]} 14. Bd3 {[%clk 0:02:41]}  g6 {[%clk 0:02:57]} 15. Rae1 {[%clk 0:02:33]}  Nh5 {[%clk 0:02:56]} 16. Qh3 {[%clk 0:01:45]}  Nxf4 {[%clk 0:02:55]} 17. Rxf4 {[%clk 0:01:32]}  e5 {[%clk 0:02:56]} 18. Rf3 {[%clk 0:01:05]}  exd4 {[%clk 0:02:53]} 19. Nd5 {[%clk 0:00:58]}  Bxd5 {[%clk 0:02:53]} 20. exd5 {[%clk 0:00:59]}  Bg5 {[%clk 0:02:45]} 21. Qg4 {[%clk 0:00:42]}  Be3+ {[%clk 0:02:44]} 22. Kh1 {[%clk 0:00:43]}  Rae8 {[%clk 0:02:40]} 23. Ref1 {[%clk 0:00:43]}  Kh8 {[%clk 0:02:26]} 24. Rf6 {[%clk 0:00:32]}  Bh6 {[%clk 0:01:59]} 25. h4 {[%clk 0:00:23]}  Bg7 {[%clk 0:01:59]} 26. R6f3 {[%clk 0:00:24]}  f5 {[%clk 0:01:59]} 27. Qg5 {[%clk 0:00:20]}  Bf6 {[%clk 0:01:50]} 28. Qg3 {[%clk 0:00:21]}  Be5 {[%clk 0:01:49]} 29. Qh3 {[%clk 0:00:19]}  Kg7 {[%clk 0:01:43]} 30. h5 {[%clk 0:00:19]}  Qe7 {[%clk 0:01:38]} 31. g4 {[%clk 0:00:11]}  f4 {[%clk 0:01:21]} 32. h6+ {[%clk 0:00:04]}  Kh8 {[%clk 0:01:21]} 33. Qg2 {[%clk 0:00:03]}  Qg5 {[%clk 0:01:18]} 34. Rh3 {[%clk 0:00:04]}  Bf6 {[%clk 0:01:05]} 35. a4 {[%clk 0:00:04]}  bxa4 {[%clk 0:01:03]} 36. Bxa6 {[%clk 0:00:05]}  Re3 {[%clk 0:01:02]} 37. Bd3 {[%clk 0:00:05]}  Be5 {[%clk 0:00:58]} 38. Rhf3 {[%clk 0:00:04]}  Qxh6+ {[%clk 0:00:57]} 39. Kg1 {[%clk 0:00:05]}  Qg5 {[%clk 0:00:51]} 40. Kf2 {[%clk 0:00:05]}  Qh4+ {[%clk 0:00:49]} 41. Kg1 {[%clk 0:00:06]}  Kg7 {[%clk 0:00:49]} 42. Rxe3 {[%clk 0:00:05]}  dxe3 {[%clk 0:00:49]} 43. Qf3 {[%clk 0:00:04]}  Qg5 {[%clk 0:00:48]} 44. Kg2 {[%clk 0:00:05]}  h5 {[%clk 0:00:48]} 45. Qe4 {[%clk 0:00:05]}  hxg4 {[%clk 0:00:45]} 46. Rh1 {[%clk 0:00:05]}  f3+ {[%clk 0:00:46]} 47. Kf1 {[%clk 0:00:05]}  e2+ {[%clk 0:00:46]} 48. Ke1 {[%clk 0:00:05]}  Bg3# {[%clk 0:00:45]} 0-1


[Site "https://www.chess.com"]

[Event "Titled Tuesday Blitz February 28 Early 2023"]
[White "Boraso, Alessio"]
[Black "Pinheiro, Iung Alicio de O."]
[WhiteFideId "848077"]
[BlackFideId "2104350"]
[WhiteElo "2286"]
[BlackElo "2283"]
[Result "0-1"]
[Round "06"]
[TimeControl "180+2"]
[Date "2023.02.28"]
[WhiteClock "0:00:01"]
[BlackClock "0:00:10"]

1. Nf3 {[%clk 0:03:00]}  d5 {[%clk 0:02:59]} 2. e3 {[%clk 0:02:59]}  c6 {[%clk 0:02:54]} 3. b3 {[%clk 0:03:00]}  Nf6 {[%clk 0:02:53]} 4. Bb2 {[%clk 0:03:00]}  Bf5 {[%clk 0:02:54]} 5. d4 {[%clk 0:03:01]}  Nbd7 {[%clk 0:02:51]} 6. Bd3 {[%clk 0:03:01]}  e6 {[%clk 0:02:50]} 7. Nbd2 {[%clk 0:02:59]}  Ne4 {[%clk 0:02:49]} 8. O-O {[%clk 0:02:54]}  Bd6 {[%clk 0:02:46]} 9. Ne5 {[%clk 0:02:51]}  f6 {[%clk 0:02:33]} 10. Nxd7 {[%clk 0:02:47]}  Qxd7 {[%clk 0:02:32]} 11. f3 {[%clk 0:02:35]}  Nxd2 {[%clk 0:02:30]} 12. Qxd2 {[%clk 0:02:36]}  Bg6 {[%clk 0:02:28]} 13. e4 {[%clk 0:02:29]}  Qc7 {[%clk 0:02:19]} 14. g3 {[%clk 0:02:22]}  O-O-O {[%clk 0:02:17]} 15. c4 {[%clk 0:02:14]}  dxe4 {[%clk 0:02:17]} 16. Bxe4 {[%clk 0:02:09]}  c5 {[%clk 0:02:08]} 17. Qf2 {[%clk 0:02:01]}  Kb8 {[%clk 0:01:50]} 18. Rad1 {[%clk 0:02:00]}  Bh5 {[%clk 0:01:45]} 19. Rd2 {[%clk 0:01:39]}  Rd7 {[%clk 0:01:09]} 20. Kg2 {[%clk 0:01:33]}  Rhd8 {[%clk 0:01:05]} 21. Rfd1 {[%clk 0:01:33]}  b6 {[%clk 0:00:47]} 22. d5 {[%clk 0:01:20]}  e5 {[%clk 0:00:42]} 23. Bf5 {[%clk 0:01:15]}  Re7 {[%clk 0:00:41]} 24. a3 {[%clk 0:01:02]}  Bg6 {[%clk 0:00:39]} 25. Be6 {[%clk 0:01:01]}  e4 {[%clk 0:00:33]} 26. f4 {[%clk 0:00:57]}  Bh5 {[%clk 0:00:32]} 27. Re1 {[%clk 0:00:52]}  Bf3+ {[%clk 0:00:32]} 28. Kg1 {[%clk 0:00:52]}  Rf8 {[%clk 0:00:29]} 29. Bc3 {[%clk 0:00:46]}  g5 {[%clk 0:00:29]} 30. fxg5 {[%clk 0:00:39]}  fxg5 {[%clk 0:00:30]} 31. Rxe4 {[%clk 0:00:39]}  Ree8 {[%clk 0:00:26]} 32. Re3 {[%clk 0:00:22]}  g4 {[%clk 0:00:26]} 33. Qe1 {[%clk 0:00:21]}  h5 {[%clk 0:00:26]} 34. Be5 {[%clk 0:00:12]}  h4 {[%clk 0:00:19]} 35. gxh4 {[%clk 0:00:10]}  Rf4 {[%clk 0:00:14]} 36. Bxd6 {[%clk 0:00:10]}  Qxd6 {[%clk 0:00:13]} 37. Qg3 {[%clk 0:00:10]}  Ref8 {[%clk 0:00:12]} 38. Rf2 {[%clk 0:00:11]}  Kb7 {[%clk 0:00:11]} 39. Rfxf3 {[%clk 0:00:08]}  gxf3 {[%clk 0:00:11]} 40. Rxf3 {[%clk 0:00:08]}  Qe5 {[%clk 0:00:10]} 41. Rxf4 {[%clk 0:00:07]}  Rxf4 {[%clk 0:00:10]} 42. Bg4 {[%clk 0:00:05]}  Qa1+ {[%clk 0:00:10]} 43. Kg2 {[%clk 0:00:01]}  Qf1# {[%clk 0:00:10]} 0-1


[Site "https://www.chess.com"]

[Event "Titled Tuesday Blitz February 28 Early 2023"]
[White "Karttunen, Mika"]
[Black "Alahakoon, Isuru"]
[WhiteFideId "502081"]
[BlackFideId "9900993"]
[WhiteElo "2396"]
[BlackElo "1995"]
[Result "1-0"]
[Round "06"]
[TimeControl "180+2"]
[Date "2023.02.28"]
[WhiteClock "0:00:12"]
[BlackClock "0:00:05"]

1. d4 {[%clk 0:03:00]}  d5 {[%clk 0:02:59]} 2. c4 {[%clk 0:02:58]}  e6 {[%clk 0:02:59]} 3. Nc3 {[%clk 0:02:57]}  Nf6 {[%clk 0:02:58]} 4. cxd5 {[%clk 0:02:57]}  exd5 {[%clk 0:02:58]} 5. Bg5 {[%clk 0:02:56]}  c6 {[%clk 0:02:58]} 6. e3 {[%clk 0:02:53]}  Bd6 {[%clk 0:02:58]} 7. Qc2 {[%clk 0:02:52]}  O-O {[%clk 0:02:58]} 8. Bd3 {[%clk 0:02:52]}  h6 {[%clk 0:02:58]} 9. Bh4 {[%clk 0:02:52]}  Re8 {[%clk 0:02:59]} 10. Nge2 {[%clk 0:02:52]}  a5 {[%clk 0:02:58]} 11. Bg3 {[%clk 0:02:32]}  Na6 {[%clk 0:02:57]} 12. a3 {[%clk 0:02:30]}  Nc7 {[%clk 0:02:55]} 13. O-O {[%clk 0:02:02]}  Ne6 {[%clk 0:02:52]} 14. f3 {[%clk 0:01:48]}  Bxg3 {[%clk 0:02:19]} 15. Nxg3 {[%clk 0:01:46]}  Ng5 {[%clk 0:02:18]} 16. Qd2 {[%clk 0:01:29]}  h5 {[%clk 0:01:58]} 17. Nh1 {[%clk 0:01:10]}  h4 {[%clk 0:01:53]} 18. h3 {[%clk 0:01:07]}  Qd6 {[%clk 0:01:37]} 19. Qf2 {[%clk 0:01:00]}  Qe7 {[%clk 0:01:03]} 20. Rae1 {[%clk 0:00:58]}  Bxh3 {[%clk 0:00:36]} 21. Qxh4 {[%clk 0:00:49]}  Nfe4 {[%clk 0:00:36]} 22. Qh5 {[%clk 0:00:20]}  g6 {[%clk 0:00:21]} 23. Qh6 {[%clk 0:00:20]}  Nxc3 {[%clk 0:00:18]} 24. gxh3 {[%clk 0:00:20]}  Na4 {[%clk 0:00:14]} 25. h4 {[%clk 0:00:15]}  Nh7 {[%clk 0:00:13]} 26. Rf2 {[%clk 0:00:14]}  Qf6 {[%clk 0:00:08]} 27. Ng3 {[%clk 0:00:12]}  Qg7 {[%clk 0:00:07]} 28. Qf4 {[%clk 0:00:12]}  Nf6 {[%clk 0:00:07]} 29. Rg2 {[%clk 0:00:11]}  Kf8 {[%clk 0:00:06]} 30. Nf5 {[%clk 0:00:11]}  Qh8 {[%clk 0:00:06]} 31. Qd6+ {[%clk 0:00:10]}  Kg8 {[%clk 0:00:06]} 32. h5 {[%clk 0:00:10]}  Qxh5 {[%clk 0:00:05]} 33. Qxf6 {[%clk 0:00:08]}  Qh7 {[%clk 0:00:04]} 34. Rh2 {[%clk 0:00:07]}  Re6 {[%clk 0:00:03]} 35. Ne7+ {[%clk 0:00:04]}  Kf8 {[%clk 0:00:02]} 36. Qh8+ {[%clk 0:00:04]}  Qxh8 {[%clk 0:00:01]} 37. Rxh8+ {[%clk 0:00:05]}  Kxe7 {[%clk 0:00:02]} 38. Rxa8 {[%clk 0:00:05]}  Nxb2 {[%clk 0:00:02]} 39. Bf1 {[%clk 0:00:05]}  b5 {[%clk 0:00:02]} 40. Rxa5 {[%clk 0:00:05]}  Nc4 {[%clk 0:00:02]} 41. Bxc4 {[%clk 0:00:05]}  bxc4 {[%clk 0:00:03]} 42. Ra7+ {[%clk 0:00:05]}  Kf6 {[%clk 0:00:03]} 43. Kf2 {[%clk 0:00:06]}  Re8 {[%clk 0:00:02]} 44. Rc7 {[%clk 0:00:06]}  Rh8 {[%clk 0:00:03]} 45. Rxc6+ {[%clk 0:00:06]}  Kg7 {[%clk 0:00:04]} 46. Kg2 {[%clk 0:00:07]}  Rb8 {[%clk 0:00:03]} 47. Re2 {[%clk 0:00:07]}  Rb3 {[%clk 0:00:03]} 48. Rc5 {[%clk 0:00:08]}  Rxa3 {[%clk 0:00:03]} 49. Rxd5 {[%clk 0:00:08]}  c3 {[%clk 0:00:04]} 50. Rc5 {[%clk 0:00:09]}  Rb3 {[%clk 0:00:04]} 51. Rc2 {[%clk 0:00:08]}  g5 {[%clk 0:00:05]} 52. R5xc3 {[%clk 0:00:08]}  Rb1 {[%clk 0:00:05]} 53. Rc5 {[%clk 0:00:09]}  f6 {[%clk 0:00:05]} 54. Rd2 {[%clk 0:00:09]}  Kg6 {[%clk 0:00:06]} 55. d5 {[%clk 0:00:10]}  Kf5 {[%clk 0:00:06]} 56. d6+ {[%clk 0:00:10]}  Ke6 {[%clk 0:00:05]} 57. d7 {[%clk 0:00:11]}  Rb8 {[%clk 0:00:05]} 58. d8=Q {[%clk 0:00:11]}  Rxd8 {[%clk 0:00:05]} 59. Rxd8 {[%clk 0:00:12]} 1-0


[Site "https://www.chess.com"]

[Event "Titled Tuesday Blitz February 28 Early 2023"]
[White "Prudnykova, Olga"]
[Black "benny_aizenberg"]
[WhiteFideId "14121093"]
[WhiteElo "2174"]
[BlackElo "2573"]
[Result "0-1"]
[Round "06"]
[TimeControl "180+2"]
[Date "2023.02.28"]
[WhiteClock "0:00:01"]
[BlackClock "0:00:15"]

1. e4 {[%clk 0:03:00]}  c5 {[%clk 0:02:58]} 2. Nf3 {[%clk 0:02:58]}  e6 {[%clk 0:02:59]} 3. Nc3 {[%clk 0:02:59]}  Nc6 {[%clk 0:02:58]} 4. d4 {[%clk 0:02:59]}  cxd4 {[%clk 0:02:58]} 5. Nxd4 {[%clk 0:02:59]}  Nf6 {[%clk 0:02:58]} 6. Nxc6 {[%clk 0:02:59]}  bxc6 {[%clk 0:02:58]} 7. e5 {[%clk 0:03:00]}  Nd5 {[%clk 0:02:58]} 8. Ne4 {[%clk 0:02:59]}  Qc7 {[%clk 0:02:58]} 9. f4 {[%clk 0:02:59]}  Rb8 {[%clk 0:02:58]} 10. c4 {[%clk 0:02:19]}  Bb4+ {[%clk 0:02:58]} 11. Ke2 {[%clk 0:02:19]}  O-O {[%clk 0:02:57]} 12. cxd5 {[%clk 0:02:14]}  cxd5 {[%clk 0:02:56]} 13. Ng5 {[%clk 0:02:13]}  f6 {[%clk 0:02:51]} 14. exf6 {[%clk 0:01:38]}  Rxf6 {[%clk 0:02:51]} 15. Qd3 {[%clk 0:01:25]}  Rf5 {[%clk 0:02:16]} 16. g4 {[%clk 0:01:14]}  Ba6 {[%clk 0:02:15]} 17. Qxa6 {[%clk 0:01:11]}  Qc2+ {[%clk 0:02:15]} 18. Kf3 {[%clk 0:01:07]}  Rxg5 {[%clk 0:01:13]} 19. Bd3 {[%clk 0:01:06]}  Qc5 {[%clk 0:01:09]} 20. h4 {[%clk 0:00:21]}  Re5 {[%clk 0:00:57]} 21. fxe5 {[%clk 0:00:05]}  Rf8+ {[%clk 0:00:56]} 22. Ke2 {[%clk 0:00:06]}  Qf2+ {[%clk 0:00:30]} 23. Kd1 {[%clk 0:00:06]}  Qf3+ {[%clk 0:00:31]} 24. Kc2 {[%clk 0:00:06]}  Qxh1 {[%clk 0:00:27]} 25. Qb5 {[%clk 0:00:05]}  a5 {[%clk 0:00:14]} 26. Qxd7 {[%clk 0:00:05]}  Rf2+ {[%clk 0:00:14]} 27. Kb3 {[%clk 0:00:05]}  Qd1+ {[%clk 0:00:15]} 28. Bc2 {[%clk 0:00:01]}  Qxc2# {[%clk 0:00:15]} 0-1


[Site "https://www.chess.com"]